fUST/lending_fUST_20260323
["ID","MTS","AMOUNT","RATE_DAILY","PERIOD"]
[408792378,1774277451601,-151.0,0.00025,2]
[408792380,1774277451611,-151.0,0.00025,2]
[408792382,1774277451622,-263.934009,0.00025,2]
[408792383,1774277451632,-184.944862,0.00025,2]
[408792385,1774277451642,-184.944862,0.00025,2]
[408792387,1774277451652,-184.944862,0.00025,2]
[408792389,1774277451662,-184.944862,0.00025,2]
[408792391,1774277451672,-184.944862,0.00025,2]
[408792393,1774277451681,-184.944862,0.00025,2]
[408792395,1774277451692,-184.944862,0.00025,2]
[408792397,1774277451702,-184.944862,0.00025,2]
[408792399,1774277451712,-201.50183,0.00025,2]
[408792401,1774277451721,-201.50183,0.00025,2]
[408792403,1774277451731,-201.50183,0.00025,2]
[408792404,1774277451741,-201.50183,0.00025,2]
[408792406,1774277451750,-201.50183,0.00025,2]
[408792408,1774277451761,-201.50183,0.00025,2]
[408792410,1774277451771,-201.50183,0.00025,2]
[408792412,1774277451781,-201.501839,0.00025,2]
[408792414,1774277451790,-611.693164,0.00025,2]
[408792416,1774277451800,-611.693164,0.00025,2]
[408792418,1774277451810,-611.693164,0.00025,2]
[408792419,1774277451820,-611.693164,0.00025,2]
[408792421,1774277451831,-611.693164,0.00025,2]
[408792423,1774277451840,-611.693164,0.00025,2]
[408792425,1774277451850,-611.693164,0.00025,2]
[408792427,1774277451860,-611.693168,0.00025,2]
[408792429,1774277451870,-172.537477,0.00025,2]
[408792431,1774277451879,-172.537477,0.00025,2]
[408792433,1774277451889,-334.411454,0.00025,2]
[408792435,1774277451899,-172.537477,0.00025,2]
[408792437,1774277451909,-334.411454,0.00025,2]
[408792439,1774277451919,-172.537477,0.00025,2]
[408792457,1774277452097,-194.538464,0.00025,2]
[408792459,1774277452108,-194.538464,0.00025,2]
[408792461,1774277452118,-334.411454,0.00025,2]
[408792463,1774277452128,-334.411454,0.00025,2]
[408792465,1774277452138,-172.537477,0.00025,2]
[408792466,1774277452148,-172.537477,0.00025,2]
[408792469,1774277452158,-194.538464,0.00025,2]
[408792471,1774277452169,-194.538464,0.00025,2]
[408792472,1774277452179,-334.411454,0.00025,2]
[408792474,1774277452188,-334.411454,0.00025,2]
[408792476,1774277452198,-172.537477,0.00025,2]
[408792478,1774277452208,-194.538464,0.00025,2]
[408792480,1774277452218,-172.537477,0.00025,2]
[408792482,1774277452227,-194.538464,0.00025,2]
[408792484,1774277452237,-334.411454,0.00025,2]
[408792486,1774277452247,-334.411452,0.00025,2]
[408792488,1774277452258,-194.538464,0.00025,2]
[408792490,1774277452269,-194.538473,0.00025,2]
[408792492,1774277452279,-152.633807,0.00025,2]
[408792494,1774277452289,-151.0,0.00025,2]
[408792496,1774277452298,-151.0,0.00025,2]
[408792498,1774277452308,-960.021643,0.00025,2]
[408792500,1774277452317,-960.021643,0.00025,2]
[408792502,1774277452327,-960.021643,0.00025,2]
[408792503,1774277452337,-960.021643,0.00025,2]
[408792505,1774277452346,-960.021643,0.00025,2]
[408792507,1774277452356,-960.021643,0.00025,2]
[408792509,1774277452366,-960.021643,0.00025,2]
[408792511,1774277452375,-960.02164,0.00025,2]
[408792513,1774277452384,-196.548611,0.00025,2]
[408792515,1774277452394,-196.548611,0.00025,2]
[408792517,1774277452403,-196.548611,0.00025,2]
[408792519,1774277452413,-196.548611,0.00025,2]
[408792521,1774277452422,-196.548611,0.00025,2]
[408792523,1774277452432,-196.548611,0.00025,2]
[408792525,1774277452441,-196.548611,0.00025,2]
[408792527,1774277452450,-196.548605,0.00025,2]
[408792529,1774277452459,-151.0,0.00025,2]
[408792530,1774277452468,-151.0,0.00025,2]
[408792532,1774277452478,-151.0,0.00025,2]
[408792534,1774277452487,-151.0,0.00025,2]
[408792536,1774277452497,-367.505149,0.00025,2]
[408792538,1774277452507,-367.505149,0.00025,2]
[408792540,1774277452522,-367.505149,0.00025,2]
[408792542,1774277452532,-367.505149,0.00025,2]
[408792544,1774277452542,-498.1826,0.00025,2]
[408792546,1774277452553,-498.1826,0.00025,2]
[408792548,1774277452563,-498.1826,0.00025,2]
[408792550,1774277452572,-498.1826,0.00025,2]
[408792552,1774277452581,-151.0,0.00025,2]
[408792554,1774277452592,-2856.208797,0.00025,2]
[408792556,1774277452602,-151.0,0.00025,2]
[408792558,1774277452611,-2856.208797,0.00025,2]
[408792560,1774277452621,-2856.208797,0.00025,2]
[408792561,1774277452630,-2856.208797,0.00025,2]
[408792563,1774277452640,-966.324788,0.00025,2]
[408792565,1774277452649,-966.324788,0.00025,2]
[408792567,1774277452660,-966.324788,0.00025,2]
[408792569,1774277452670,-966.324788,0.00025,2]
[408792571,1774277452680,-1027.49932518,0.00025,2]
[408792573,1774277452690,-170.16,0.00025,30]
[408792575,1774277452700,-184.0,0.00025,2]
[408792577,1774277452710,-1812.65220796,0.00025016,2]
[408792579,1774277452720,-2000.0,0.00025016,2]
[408792581,1774277452729,-2000.0,0.00025016,2]
[408792583,1774277452739,-325.4452633,0.00025056,2]
[408792585,1774277452749,-2773.56790519,0.00025069,2]
[408792587,1774277452759,-151.0,0.00025173,2]
[408792589,1774277452769,-151.0,0.00025173,2]
[408792591,1774277452779,-151.0,0.00025173,2]
[408792593,1774277452788,-151.0,0.00025173,2]
[408792595,1774277452798,-151.0,0.00025173,2]
[408792597,1774277452808,-151.0,0.00025173,2]
[408792599,1774277452817,-2677.776263,0.00025173,2]
[408792601,1774277452826,-2677.776263,0.00025173,2]
[408792602,1774277452836,-2677.776263,0.00025173,2]
[408792604,1774277452846,-2677.776263,0.00025173,2]
[408792606,1774277452855,-194.330576,0.00025173,2]
[408792608,1774277452865,-194.330576,0.00025173,2]
[408792610,1774277452875,-194.330576,0.00025173,2]
[408792611,1774277452885,-194.330574,0.00025173,2]
[408792613,1774277452894,-151.0,0.00025173,2]
[408792615,1774277452904,-184.944862,0.00025173,2]
[408792617,1774277452914,-184.944862,0.00025173,2]
[408792619,1774277452924,-184.944862,0.00025173,2]
[408792621,1774277452934,-184.944862,0.00025173,2]
[408792623,1774277452944,-1000.0,0.00025205,2]
[408792624,1774277452953,-500.0,0.00025205,4]
[408792626,1774277452962,-709.25,0.00025205,4]
[408792628,1774277452972,-500.0,0.00025205,4]
[408792630,1774277452982,-813.88927389,0.00025205,2]
[408792632,1774277452992,-500.0,0.00025273,2]
[408792634,1774277453001,-150.0,0.00025273,2]
[408792636,1774277453011,-500.0,0.00025273,2]
[408792638,1774277453021,-500.0,0.00025273,2]
[408792640,1774277453031,-500.0,0.00025273,2]
[408792642,1774277453042,-150.0,0.00025273,2]
[408792644,1774277453052,-151.0,0.00025273,2]
[408792646,1774277453061,-151.0,0.00025273,2]
[408792647,1774277453071,-151.0,0.00025273,2]
[408792649,1774277453080,-233.641374,0.00025273,2]
[408792651,1774277453090,-151.0,0.00025293,5]
[408792653,1774277453099,-4002429.27074861,0.000253,20]
[408792655,1774277453109,-248.39131665,0.000253,2]
[408792657,1774277453118,-151.0,0.000253,2]
[408792659,1774277453128,-151.0,0.000253,2]
[408792660,1774277453137,-151.0,0.000253,2]
[408792662,1774277453146,-151.0,0.000253,2]
[408792664,1774277453156,-151.0,0.000253,2]
[408792665,1774277453165,-249.41807,0.000253,2]
[408792666,1774277453174,-2677.776263,0.000253,2]
[408792667,1774277453183,-2677.776263,0.000253,2]
[408792668,1774277453193,-2677.776263,0.000253,2]
[408792669,1774277453202,-2677.776268,0.000253,2]
[408792670,1774277453211,-367.505149,0.000253,2]
[408792671,1774277453221,-367.505149,0.000253,2]
[408792672,1774277453231,-367.505149,0.000253,2]
[408792673,1774277453240,-367.505153,0.000253,2]
[408792674,1774277453250,-498.1826,0.000253,2]
[408792675,1774277453259,-498.1826,0.000253,2]
[408792676,1774277453269,-498.1826,0.000253,2]
[408792677,1774277453278,-498.182598,0.000253,2]
[408792678,1774277453287,-151.0,0.000253,2]
[408792679,1774277453296,-2856.208797,0.000253,2]
[408792680,1774277453305,-2856.208797,0.000253,2]
[408792681,1774277453314,-2856.208797,0.000253,2]
[408792682,1774277453323,-2856.20879,0.000253,2]
[408792683,1774277453333,-966.324788,0.000253,2]
[408792684,1774277453342,-966.324788,0.000253,2]
[408792685,1774277453351,-151.0,0.000253,2]
[408792686,1774277453360,-966.324788,0.000253,2]
[408792687,1774277453369,-966.324781,0.000253,2]
[408792688,1774277453378,-2500.0,0.00025435,2]
[408792689,1774277453387,-2500.0,0.00025435,2]
[408792690,1774277453398,-2500.0,0.00025435,2]
[408792691,1774277453408,-2014772.8667,0.00025444,2]
[408792692,1774277453417,-151.0,0.00025444,2]
[408792693,1774277453427,-288.309321,0.00025444,2]
[408792694,1774277453436,-151.0,0.00025444,2]
[408792695,1774277453446,-151.0,0.00025444,2]
[408792696,1774277453456,-151.0,0.00025444,2]
[408792697,1774277453466,-1000.0,0.00025479,2]
[408792698,1774277453475,-500.00000029,0.00025479,4]
[408792699,1774277453484,-709.25,0.00025479,4]
[408792700,1774277453493,-500.0,0.00025479,4]
[408792701,1774277453503,-1500.0,0.00025496,2]
[408792702,1774277453516,-550.1734381,0.00025496,2]
[408792703,1774277453525,-248.39131665,0.000255,2]
[408792704,1774277453535,-1000.0,0.000255,2]
[408792705,1774277453545,-250.0,0.00025521,2]
[408792706,1774277453555,-2500.0,0.00025564,2]
[408792707,1774277453565,-2500.0,0.00025564,2]
[408792708,1774277453575,-2876.18991768,0.00025617,2]
[408792709,1774277453585,-324.7325339,0.00025737,2]
[408792710,1774277453596,-1000.0,0.00025753,2]
[408792711,1774277453606,-709.25,0.00025753,4]
[408792712,1774277453615,-313.49054442,0.00025753,4]
[408792713,1774277453625,-248.39131665,0.000258,2]
[408792714,1774277453635,-1000.0,0.00025821,2]
[408792715,1774277453645,-300.0,0.00025821,2]
[408792716,1774277453655,-1000.0,0.00025821,2]
[408792717,1774277453664,-1000.0,0.00025821,2]
[408792718,1774277453674,-1000.0,0.00025821,2]
[408792719,1774277453684,-250.0,0.00025821,2]
[408792720,1774277453693,-151.0,0.00025821,2]
[408792721,1774277453703,-151.0,0.00025821,2]
[408792722,1774277453713,-151.0,0.00025821,2]
[408792723,1774277453723,-151.0,0.00025821,2]
[408792724,1774277453732,-455.6317992,0.00025821,2]
[408792725,1774277453741,-324.6447676,0.00025821,2]
[408792726,1774277453752,-963.8,0.000259,2]
[408792727,1774277453762,-500.0,0.00025979,30]
[408792728,1774277453772,-500.0,0.00025979,30]
[408792729,1774277453782,-613.26060765,0.00025979,30]
[408792730,1774277453792,-1502.24924086,0.00025983,2]
[408792731,1774277453802,-3000.0,0.00025983,2]
[408792732,1774277453812,-3000.0,0.00025983,2]
[408792733,1774277453821,-248.39131665,0.00026,2]
[408792734,1774277453831,-533.27853224,0.00026,2]
[408792735,1774277453840,-283690.81256628,0.00026,30]
[408792736,1774277453850,-1027.0,0.00026,2]
[408792737,1774277453860,-184.0,0.00026,2]
[408792738,1774277453870,-1000.0,0.00026027,2]
[408792739,1774277453880,-709.25,0.00026027,4]
[408792741,1774277453890,-1800.0,0.00026044,2]
[408792743,1774277453900,-350.0,0.00026068,2]
[408792745,1774277453909,-3000.0,0.00026112,2]
[408792747,1774277453919,-3000.0,0.00026112,2]
[408792749,1774277453928,-195.9013529,0.0002616,2]
[408792751,1774277453939,-2982.60894464,0.00026165,2]
[408792753,1774277453949,-728.37426503,0.00026301,2]
[408792755,1774277453959,-709.25,0.00026301,4]
[408792756,1774277453968,-1500.0,0.00026368,2]
[408792758,1774277453978,-450.0,0.00026368,2]
[408792760,1774277453987,-1500.0,0.00026368,2]
[408792762,1774277453998,-1001.26608105,0.00026368,2]
[408792764,1774277454008,-1500.0,0.00026368,2]
[408792766,1774277454018,-350.0,0.00026368,2]
[408792768,1774277454028,-170.16,0.00026412,30]
[408792770,1774277454037,-500.0,0.00026498,5]
[408792772,1774277454048,-272.21184668,0.000265,5]
[408792774,1774277454058,-3400.82196704,0.00026516,2]
[408792776,1774277454069,-3500.0,0.00026531,2]
[408792778,1774277454079,-2502.71071824,0.00026531,2]
[408792780,1774277454088,-325.1209755,0.00026563,2]
[408792781,1774277454099,-399.2751959,0.00026563,2]
[408792783,1774277454108,-2000.0,0.00026572,7]
[408792785,1774277454118,-709.25,0.00026575,4]
[408792787,1774277454129,-151.0,0.00026578,2]
[408792789,1774277454138,-2100.0,0.00026592,2]
[408792791,1774277454148,-513.44645724,0.00026616,2]
[408792793,1774277454158,-195.8040061,0.00026642,2]
[408792795,1774277454167,-196.1530332,0.00026643,2]
[408792797,1774277454177,-3500.0,0.0002666,2]
[408792799,1774277454187,-3500.0,0.0002666,2]
[408792801,1774277454195,-3092.96547559,0.00026713,2]
[408792803,1774277454205,-709.25,0.00026849,4]
[408792805,1774277454215,-963.8,0.000269,2]
[408792806,1774277454224,-2000.0,0.00026916,2]
[408792808,1774277454234,-600.0,0.00026916,2]
[408792810,1774277454244,-2000.0,0.00026916,2]
[408792812,1774277454256,-2000.0,0.00026916,2]
[408792814,1774277454266,-450.0,0.00026916,2]
[408792816,1774277454275,-1027.0,0.00027,2]
[408792818,1774277454285,-194.0,0.00027,2]
[408792820,1774277454295,-189.18159756,0.00027047,3]
[408792822,1774277454305,-4000.0,0.00027078,2]
[408792824,1774277454313,-709.25,0.00027123,4]
[408792825,1774277454322,-2103.13519272,0.00027139,2]
[408792827,1774277454332,-1000.0,0.00027151,30]
[408792829,1774277454342,-2712.92819479,0.00027208,2]
[408792831,1774277454352,-4000.0,0.00027208,2]
[408792833,1774277454361,-3207.40519818,0.00027261,2]
[408792835,1774277454370,-150.0,0.00027362,2]
[408792837,1774277454380,-150.0,0.00027362,2]
[408792839,1774277454390,-150.0,0.00027362,2]
[408792841,1774277454399,-150.0,0.00027362,2]
[408792843,1774277454408,-150.0,0.00027362,2]
[408792845,1774277454418,-256.0,0.00027362,2]
[408792847,1774277454427,-150.0,0.0002739,2]
[408792849,1774277454436,-151.46970606,0.00027397,2]
[408792855,1774277454446,-151.46970606,0.00027397,2]
[408792857,1774277454501,-151.46970606,0.00027397,2]
[408792859,1774277454513,-151.46970606,0.00027397,2]
[408792861,1774277454522,-151.46970606,0.00027397,2]
[408792863,1774277454531,-151.46970606,0.00027397,2]
[408792865,1774277454540,-151.46970606,0.00027397,2]
[408792867,1774277454549,-151.46970606,0.00027397,2]
[408792868,1774277454559,-151.46970606,0.00027397,2]
[408792870,1774277454568,-151.46970606,0.00027397,2]
[408792872,1774277454577,-151.46970606,0.00027397,2]
[408792874,1774277454586,-151.46970606,0.00027397,2]
[408792876,1774277454596,-151.46970606,0.00027397,2]
[408792878,1774277454605,-151.46970606,0.00027397,2]
[408792880,1774277454613,-151.46970606,0.00027397,2]
[408792882,1774277454622,-151.46970606,0.00027397,2]
[408792884,1774277454631,-151.46970606,0.00027397,2]
[408792886,1774277454641,-151.46970606,0.00027397,2]
[408792888,1774277454650,-151.46970606,0.00027397,2]
[408792890,1774277454660,-191.37447835,0.00027397,2]
[408792892,1774277454670,-709.25,0.00027397,4]
[408792893,1774277454679,-959.33563646,0.00027397,2]
[408792895,1774277454688,-226.90487012,0.00027397,2]
[408792897,1774277454697,-158.83340908,0.00027397,2]
[408792899,1774277454707,-441.664956,0.00027397,2]
[408792901,1774277454715,-441.664956,0.00027397,2]
[408792903,1774277454724,-441.664956,0.00027397,2]
[408792905,1774277454734,-441.664956,0.00027397,2]
[408792907,1774277454743,-441.664956,0.00027397,2]
[408792909,1774277454752,-441.664956,0.00027397,2]
[408792911,1774277454763,-441.664956,0.00027397,2]
[408792912,1774277454772,-441.664956,0.00027397,2]
[408792914,1774277454782,-441.664956,0.00027397,2]
[408792916,1774277454791,-441.664956,0.00027397,2]
[408792918,1774277454800,-441.664956,0.00027397,2]
[408792920,1774277454810,-441.664956,0.00027397,2]
[408792922,1774277454819,-441.664956,0.00027397,2]
[408792924,1774277454828,-441.664956,0.00027397,2]
[408792926,1774277454837,-441.664956,0.00027397,2]
[408792928,1774277454846,-441.664956,0.00027397,2]
[408792930,1774277454855,-441.664956,0.00027397,2]
[408792931,1774277454865,-441.664956,0.00027397,2]
[408792933,1774277454874,-441.664956,0.00027397,2]
[408792935,1774277454884,-441.664954,0.00027397,2]
[408792937,1774277454893,-150.0,0.00027397,5]
[408792939,1774277454903,-500.0,0.00027397,2]
[408792941,1774277454912,-1000.0,0.000274,120]
[408792943,1774277454921,-155.0,0.000274,2]
[408792945,1774277454930,-500.0,0.00027439,10]
[408792947,1774277454940,-500.0,0.00027439,10]
[408792949,1774277454950,-500.0,0.00027439,10]
[408792951,1774277454962,-500.0,0.00027439,10]
[408792953,1774277454971,-2197934.0364,0.00027444,2]
[408792955,1774277454982,-188.428,0.00027449,16]
[408792957,1774277454991,-454.883801,0.00027462,2]
[408792959,1774277455002,-324.727049,0.00027462,2]
[408792960,1774277455012,-196.1416653,0.00027462,2]
[408792962,1774277455022,-2500.0,0.00027464,5]
[408792964,1774277455033,-750.0,0.00027464,5]
[408792966,1774277455042,-2500.0,0.00027464,5]
[408792968,1774277455051,-550.0,0.00027464,5]
[408792970,1774277455061,-150.0,0.00027473,5]
[408792972,1774277455070,-3001.46148248,0.000275,2]
[408792974,1774277455079,-46254.37710335,0.000275,2]
[408792976,1774277455089,-4500.0,0.00027626,5]
[408792978,1774277455098,-709.25,0.00027671,4]
[408792980,1774277455108,-500.0,0.00027717,2]
[408792982,1774277455117,-156.0,0.00027737,30]
[408792984,1774277455126,-184.0,0.00027737,30]
[408792985,1774277455136,-4500.0,0.00027756,5]
[408792987,1774277455145,-3326.07919052,0.00027809,2]
[408792989,1774277455155,-170.16,0.00027825,60]
[408792991,1774277455165,-963.8,0.000279,2]
[408792993,1774277455175,-150.0,0.00027913,2]
[408792995,1774277455183,-150.0,0.00027913,2]
[408792997,1774277455193,-216.0,0.00027913,2]
[408792999,1774277455202,-709.25,0.00027945,4]
[408793001,1774277455211,-250.0,0.00027945,5]
[408793003,1774277455220,-1522.66512386,0.00027989,8]
[408793005,1774277455230,-1800000.0,0.00028,25]
[408793006,1774277455239,-1000.0,0.00028,120]
[408793008,1774277455249,-1027.0,0.00028,2]
[408793010,1774277455263,-2842.054239,0.00028,2]
[408793012,1774277455272,-3278.14447677,0.00028,2]
[408793014,1774277455282,-93324.72876395,0.00028,10]
[408793016,1774277455292,-3000.0,0.00028012,5]
[408793018,1774277455301,-900.0,0.00028012,5]
[408793020,1774277455310,-3000.0,0.00028012,5]
[408793022,1774277455320,-650.32237158,0.00028012,5]
[408793024,1774277455329,-250.0,0.00028021,5]
[408793026,1774277455338,-500.0,0.00028037,2]
[408793028,1774277455347,-3400.82196704,0.00028142,2]
[408793030,1774277455357,-5000.0,0.00028174,5]
[408793032,1774277455365,-709.35034229,0.00028219,4]
[408793034,1774277455375,-151.0,0.00028219,2]
[408793036,1774277455384,-196.1395881,0.00028222,2]
[408793037,1774277455393,-3983.0213579,0.00028304,5]
[408793039,1774277455403,-455.1621701,0.00028318,2]
[408793041,1774277455412,-454.852396,0.00028318,2]
[408793043,1774277455422,-500.0,0.00028357,2]
[408793045,1774277455430,-3449.14412057,0.00028357,2]
[408793047,1774277455440,-350.0,0.00028493,5]
[408793049,1774277455450,-1500.0,0.000285,2]
[408793051,1774277455459,-224.74306061,0.0002851,30]
[408793053,1774277455468,-3500.0,0.0002856,5]
[408793055,1774277455477,-467.23227268,0.0002856,5]
[408793057,1774277455487,-3500.0,0.0002856,5]
[408793059,1774277455497,-350.0,0.00028568,5]
[408793061,1774277455509,-500.0,0.00028677,2]
[408793063,1774277455519,-515.69434568,0.00028722,5]
[408793065,1774277455529,-156.0,0.00028737,30]
[408793067,1774277455539,-184.0,0.00028737,30]
[408793069,1774277455550,-963.8,0.000289,2]
[408793070,1774277455559,-151.0,0.00028904,3]
[408793072,1774277455569,-3576.76245303,0.00028905,2]
[408793074,1774277455578,-500.0,0.00028997,2]
[408793076,1774277455588,-599.0,0.00028997,14]
[408793078,1774277455597,-896.38883255,0.00029,2]
[408793080,1774277455606,-8027.7,0.00029,2]
[408793082,1774277455615,-1000.0,0.00029,8]
[408793084,1774277455624,-285.27152,0.00029,120]
[408793086,1774277455634,-1500.0,0.00029,2]
[408793088,1774277455643,-501.37014062,0.00029021,2]
[408793090,1774277455652,-450.0,0.00029041,5]
[408793092,1774277455661,-324.7093095,0.00029107,2]
[408793093,1774277455671,-2074.56387745,0.00029108,5]
[408793095,1774277455680,-3266.08448518,0.00029108,5]
[408793097,1774277455689,-450.05182396,0.00029116,5]
[408793099,1774277455699,-151.0,0.00029152,2]
[408793101,1774277455709,-324.7016194,0.00029152,2]
[408793103,1774277455718,-196.145294,0.00029152,2]
[408793105,1774277455727,-171.93,0.000292,2]
[408793107,1774277455737,-170.16,0.00029237,60]
[408793109,1774277455747,-500.0,0.00029316,2]
[408793111,1774277455757,-1978140.6328,0.00029444,2]
[408793113,1774277455767,-1500.0,0.000295,2]
[408793115,1774277455777,-151.0,0.00029589,4]
[408793117,1774277455786,-550.0,0.00029589,5]
[408793119,1774277455796,-500.0,0.00029636,2]
[408793121,1774277455805,-428.57367353,0.00029724,84]
[408793123,1774277455814,-691.92661057,0.00029734,84]
[408793125,1774277455824,-156.0,0.00029737,30]
[408793127,1774277455833,-184.0,0.00029737,30]
[408793129,1774277455843,-3400.82196704,0.00029768,2]
[408793131,1774277455853,-1831611.697,0.00029775,2]
[408793133,1774277455863,-150.0,0.00029834,2]
[408793135,1774277455874,-1000.0,0.00029866,30]
[408793137,1774277455884,-244.0,0.00029866,30]
[408793139,1774277455893,-1500.0,0.000299,2]
[408793141,1774277455903,-197.52278312,0.00029955,5]
[408793142,1774277455912,-180.71298647,0.00029955,5]
[408793144,1774277455922,-197.50907423,0.00029955,5]
[408793147,1774277455932,-500.0,0.00029956,2]
[408793149,1774277455942,-196.0677785,0.00029986,2]
[408793150,1774277455952,-196.1217576,0.00029987,2]
[408793152,1774277455962,-416.16854989,0.0003,10]
[408793154,1774277455972,-1618.48934282,0.0003,10]
[408793156,1774277455982,-20000.0,0.0003,4]
[408793158,1774277455991,-8453.67860198,0.0003,10]
[408793160,1774277456001,-271.40409001,0.0003,2]
[408793162,1774277456011,-14126.94441306,0.0003,7]
[408793164,1774277456021,-165.46,0.0003,5]
[408793166,1774277456032,-688.04,0.0003,14]
[408793168,1774277456042,-1594.96,0.0003,7]
[408793170,1774277456051,-300.0,0.0003,14]
[408793172,1774277456061,-1000.0,0.0003,10]
[408793174,1774277456073,-10000.0,0.0003,20]
[408793176,1774277456084,-25000.0,0.0003,7]
[408793178,1774277456093,-2000000.0,0.0003,20]
[408793180,1774277456103,-158.74177643,0.0003,14]
[408793182,1774277456112,-5000.46859515,0.0003,2]
[408793184,1774277456121,-10000.0,0.0003,2]
[408793186,1774277456130,-10000.0,0.0003,2]
[408793188,1774277456140,-10000.0,0.0003,2]
[408793190,1774277456149,-467.02486572,0.0003,120]
[408793192,1774277456159,-10870.66585983,0.0003,30]
[408793194,1774277456169,-1000.0,0.0003,120]
[408793196,1774277456178,-11878.33156887,0.0003,30]
[408793198,1774277456188,-270.83333333,0.0003,7]
[408793200,1774277456197,-1143.0,0.0003,30]
[408793202,1774277456207,-1500.0,0.0003,2]
[408793204,1774277456218,-196.7356835,0.00030044,2]
[408793206,1774277456228,-2408.83764677,0.000301,10]
[408793208,1774277456238,-154.02,0.000301,2]
[408793210,1774277456248,-154.02,0.000301,2]
[408793212,1774277456259,-4963.7232,0.00030127,2]
[408793214,1774277456270,-2079.1606,0.00030127,2]
[408793216,1774277456281,-40983.56592217,0.0003013,10]
[408793218,1774277456291,-150.0,0.0003013,2]
[408793219,1774277456300,-506.42352343,0.0003013,2]
[408793221,1774277456310,-1422.67572483,0.0003013,120]
[408793223,1774277456319,-650.0,0.00030137,5]
[408793225,1774277456329,-4963.7232,0.00030235,2]
[408793227,1774277456340,-4963.7232,0.00030235,2]
[408793230,1774277456350,-2079.1606,0.00030243,2]
[408793231,1774277456360,-151.0,0.00030273,5]
[408793232,1774277456370,-500.0,0.00030276,2]
[408793233,1774277456379,-2228.606,0.000303,3]
[408793234,1774277456389,-2228.606,0.000303,3]
[408793235,1774277456399,-2228.6,0.000303,3]
[408793236,1774277456409,-403.53,0.000303,5]
[408793237,1774277456419,-460.67,0.000303,2]
[408793238,1774277456429,-2020.99,0.000303,5]
[408793239,1774277456439,-1501.725,0.000303,3]
[408793240,1774277456449,-1501.72,0.000303,3]
[408793241,1774277456460,-1496.875,0.000303,5]
[408793242,1774277456470,-1496.87,0.000303,5]
[408793243,1774277456480,-4963.7232,0.00030342,2]
[408793244,1774277456491,-2079.1606,0.00030359,2]
[408793245,1774277456501,-383.47116573,0.00030372,85]
[408793246,1774277456514,-1356537.3268,0.00030375,7]
[408793247,1774277456525,-382.13343533,0.00030375,85]
[408793249,1774277456535,-4963.7232,0.0003045,2]
[408793250,1774277456545,-2079.1606,0.00030475,2]
[408793252,1774277456555,-315.0638864,0.000305,86]
[408793254,1774277456565,-162.12,0.0003055,15]
[408793256,1774277456574,-4963.7232,0.00030557,2]
[408793259,1774277456584,-151.18,0.00030566,15]
[408793261,1774277456597,-2079.1606,0.00030591,2]
[408793263,1774277456606,-500.0,0.00030596,2]
[408793265,1774277456616,-345.3361,0.000306,2]
[408793267,1774277456626,-1501.725,0.000306,3]
[408793269,1774277456636,-1501.72,0.000306,3]
[408793271,1774277456645,-159.31,0.00030606,15]
[408793273,1774277456655,-255.69528953,0.00030614,2]
[408793275,1774277456664,-170.16,0.0003065,90]
[408793277,1774277456674,-162.12,0.0003065,15]